[Event "*** SCC Grand Prix: Titled Tuesday Blitz"]
[Site "Chess.com"]
[Date "2020.06.02"]
[Round "7"]
[White "pavelalexandru07"]
[Black "atalz0"]
[Result "1/2-1/2"]
[WhiteElo "2128"]
[BlackElo "2310"]
[TimeControl "180+1"]
[EndTime "11:21:07 PDT"]
[Termination "Game drawn - insufficient material"]

1. e4 {[%clk 0:03:00.9]} 1... d5 {[%clk 0:02:59.5]} 2. exd5 {[%clk 0:02:58.8]}
2... Nf6 {[%clk 0:03:00.1]} 3. Nf3 {[%clk 0:02:58]} 3... Nxd5 {[%clk 0:03:00.2]}
4. d4 {[%clk 0:02:57.7]} 4... Bg4 {[%clk 0:03:00.3]} 5. Be2 {[%clk 0:02:55.5]}
5... e6 {[%clk 0:03:00.6]} 6. O-O {[%clk 0:02:55.2]} 6... Nc6 {[%clk 0:03:00]}
7. h3 {[%clk 0:02:51]} 7... Bh5 {[%clk 0:02:58.7]} 8. c3 {[%clk 0:02:48.1]} 8...
Bd6 {[%clk 0:02:57.9]} 9. Re1 {[%clk 0:02:44.4]} 9... O-O {[%clk 0:02:56.9]} 10.
Nbd2 {[%clk 0:02:44.2]} 10... Re8 {[%clk 0:02:44.5]} 11. Ne4 {[%clk 0:02:31.9]}
11... Bf8 {[%clk 0:02:44.5]} 12. Ng3 {[%clk 0:02:27.5]} 12... Bg6 {[%clk
0:02:44.2]} 13. a3 {[%clk 0:02:13.8]} 13... Nf6 {[%clk 0:02:31.8]} 14. Be3
{[%clk 0:02:10.7]} 14... e5 {[%clk 0:02:27.7]} 15. dxe5 {[%clk 0:02:08.2]} 15...
Nxe5 {[%clk 0:02:26.7]} 16. Nxe5 {[%clk 0:02:05.5]} 16... Rxe5 {[%clk
0:02:22.6]} 17. Bf3 {[%clk 0:02:05.3]} 17... Qe7 {[%clk 0:02:01]} 18. Bd4 {[%clk
0:01:51.6]} 18... Rxe1+ {[%clk 0:01:59.7]} 19. Qxe1 {[%clk 0:01:52.5]} 19...
Qxe1+ {[%clk 0:01:59.7]} 20. Rxe1 {[%clk 0:01:53.4]} 20... c6 {[%clk 0:01:55.7]}
21. h4 {[%clk 0:01:30.7]} 21... Re8 {[%clk 0:01:41.6]} 22. Rxe8 {[%clk 0:01:14]}
22... Nxe8 {[%clk 0:01:42.5]} 23. Bxa7 {[%clk 0:01:04.1]} 23... Nc7 {[%clk
0:01:38.1]} 24. Bb6 {[%clk 0:00:52.6]} 24... Ne6 {[%clk 0:01:34.7]} 25. h5
{[%clk 0:00:46.6]} 25... Bd3 {[%clk 0:01:32.8]} 26. Be2 {[%clk 0:00:43.5]} 26...
Nf4 {[%clk 0:01:30]} 27. Bxd3 {[%clk 0:00:42.6]} 27... Nxd3 {[%clk 0:01:30.9]}
28. b4 {[%clk 0:00:40.5]} 28... Ne5 {[%clk 0:01:26.5]} 29. Bd4 {[%clk
0:00:32.4]} 29... Nc4 {[%clk 0:01:23.8]} 30. a4 {[%clk 0:00:32.4]} 30... g6
{[%clk 0:01:11.6]} 31. hxg6 {[%clk 0:00:31.3]} 31... hxg6 {[%clk 0:01:11.5]} 32.
Kf1 {[%clk 0:00:31.2]} 32... f5 {[%clk 0:01:11]} 33. Ke2 {[%clk 0:00:29.7]}
33... Kf7 {[%clk 0:01:10.3]} 34. Nf1 {[%clk 0:00:28.5]} 34... Ke6 {[%clk
0:01:08.6]} 35. Nd2 {[%clk 0:00:26.9]} 35... Kd5 {[%clk 0:01:03.7]} 36. Nf3
{[%clk 0:00:18.9]} 36... Bd6 {[%clk 0:00:56.9]} 37. Nh4 {[%clk 0:00:17]} 37...
c5 {[%clk 0:00:40.8]} 38. bxc5 {[%clk 0:00:16.7]} 38... Bxc5 {[%clk 0:00:41.7]}
39. Bxc5 {[%clk 0:00:16]} 39... Kxc5 {[%clk 0:00:42.4]} 40. Nxg6 {[%clk
0:00:15.5]} 40... Nb2 {[%clk 0:00:42.1]} 41. Kd2 {[%clk 0:00:10.9]} 41... Nxa4
{[%clk 0:00:41.8]} 42. Ne7 {[%clk 0:00:10.8]} 42... f4 {[%clk 0:00:41]} 43. Ng6
{[%clk 0:00:09.8]} 43... Kc4 {[%clk 0:00:31.8]} 44. Nxf4 {[%clk 0:00:08.7]}
44... Nxc3 {[%clk 0:00:32.1]} 45. f3 {[%clk 0:00:05.4]} 45... b5 {[%clk
0:00:31]} 46. g4 {[%clk 0:00:05]} 46... b4 {[%clk 0:00:26.3]} 47. g5 {[%clk
0:00:04.3]} 47... b3 {[%clk 0:00:23.4]} 48. Nd3 {[%clk 0:00:03]} 48... Nb1+
{[%clk 0:00:21.1]} 49. Kc1 {[%clk 0:00:02.7]} 49... Nc3 {[%clk 0:00:16.9]} 50.
Nb2+ {[%clk 0:00:03.2]} 50... Kd5 {[%clk 0:00:16.5]} 51. g6 {[%clk 0:00:03.6]}
51... Ke6 {[%clk 0:00:16.7]} 52. f4 {[%clk 0:00:04]} 52... Ne2+ {[%clk
0:00:16.1]} 53. Kd2 {[%clk 0:00:03.8]} 53... Nxf4 {[%clk 0:00:17]} 54. g7 {[%clk
0:00:03]} 54... Kf7 {[%clk 0:00:17.2]} 55. Kc3 {[%clk 0:00:03.3]} 55... Kxg7
{[%clk 0:00:17.4]} 56. Kxb3 {[%clk 0:00:03.1]} 1/2-1/2

[Event "*** SCC Grand Prix: Titled Tuesday Blitz"]
[Site "Chess.com"]
[Date "2020.06.02"]
[Round "7"]
[White "louis198"]
[Black "dpopadic"]
[Result "1-0"]
[WhiteElo "2470"]
[BlackElo "2337"]
[TimeControl "180+1"]
[EndTime "11:21:09 PDT"]
[Termination "louis198 won on time"]

1. d4 {[%clk 0:03:00.9]} 1... Nf6 {[%clk 0:02:59.5]} 2. Bf4 {[%clk 0:03:01.1]}
2... g6 {[%clk 0:02:59.4]} 3. e3 {[%clk 0:03:01.5]} 3... Bg7 {[%clk 0:02:59.2]}
4. h3 {[%clk 0:03:02]} 4... d6 {[%clk 0:02:59.7]} 5. Nf3 {[%clk 0:03:02.2]} 5...
O-O {[%clk 0:03:00.4]} 6. Bc4 {[%clk 0:03:02.8]} 6... c5 {[%clk 0:03:00.6]} 7.
O-O {[%clk 0:03:02.4]} 7... Nc6 {[%clk 0:03:00.8]} 8. c3 {[%clk 0:03:02.4]} 8...
Bf5 {[%clk 0:03:00.2]} 9. Nbd2 {[%clk 0:03:02.2]} 9... Ne4 {[%clk 0:02:59.9]}
10. a4 {[%clk 0:02:59.1]} 10... Nxd2 {[%clk 0:02:59]} 11. Nxd2 {[%clk
0:02:58.3]} 11... a6 {[%clk 0:02:57.3]} 12. Qe2 {[%clk 0:02:43.2]} 12... Bd7
{[%clk 0:02:42.8]} 13. Rfd1 {[%clk 0:02:33.4]} 13... cxd4 {[%clk 0:02:32]} 14.
exd4 {[%clk 0:02:29.9]} 14... Rc8 {[%clk 0:02:27.5]} 15. Ba2 {[%clk 0:02:27]}
15... Nb8 {[%clk 0:02:11.8]} 16. Bg3 {[%clk 0:02:25]} 16... Bc6 {[%clk
0:01:52.8]} 17. a5 {[%clk 0:02:20.1]} 17... e6 {[%clk 0:01:45.7]} 18. Ne4 {[%clk
0:02:11.1]} 18... Bxe4 {[%clk 0:01:45]} 19. Qxe4 {[%clk 0:02:10.1]} 19... d5
{[%clk 0:01:44.7]} 20. Qe3 {[%clk 0:02:05.5]} 20... Nc6 {[%clk 0:01:44.7]} 21.
b4 {[%clk 0:02:04.5]} 21... Na7 {[%clk 0:01:43.8]} 22. Rac1 {[%clk 0:01:54.6]}
22... Nb5 {[%clk 0:01:43.8]} 23. Bb3 {[%clk 0:01:52.5]} 23... Na3 {[%clk
0:01:38.1]} 24. h4 {[%clk 0:01:40.7]} 24... h5 {[%clk 0:01:37]} 25. Ba4 {[%clk
0:01:07.7]} 25... Kh7 {[%clk 0:01:21]} 26. Ra1 {[%clk 0:01:07.4]} 26... Nc4
{[%clk 0:01:18.3]} 27. Qe2 {[%clk 0:01:05.7]} 27... Bf6 {[%clk 0:01:15.7]} 28.
Bc2 {[%clk 0:01:04.4]} 28... Kg7 {[%clk 0:01:10.9]} 29. Rd3 {[%clk 0:00:57.4]}
29... Bxh4 {[%clk 0:01:06.6]} 30. Bxh4 {[%clk 0:00:54.9]} 30... Qxh4 {[%clk
0:01:05.4]} 31. Rh3 {[%clk 0:00:55.5]} 31... Qe7 {[%clk 0:00:55.9]} 32. Rg3
{[%clk 0:00:53.7]} 32... Rh8 {[%clk 0:00:52.4]} 33. Rd1 {[%clk 0:00:40.4]} 33...
Qf6 {[%clk 0:00:32.7]} 34. Rdd3 {[%clk 0:00:39.4]} 34... Nd6 {[%clk 0:00:28.4]}
35. Rdf3 {[%clk 0:00:38.8]} 35... Nf5 {[%clk 0:00:28.1]} 36. Bxf5 {[%clk
0:00:26]} 36... exf5 {[%clk 0:00:28]} 37. Qd3 {[%clk 0:00:26.9]} 37... Kf8
{[%clk 0:00:20.2]} 38. Re3 {[%clk 0:00:27.2]} 38... Re8 {[%clk 0:00:18.9]} 39.
Rxe8+ {[%clk 0:00:26.7]} 39... Kxe8 {[%clk 0:00:18.7]} 40. Re3+ {[%clk
0:00:27.6]} 40... Kf8 {[%clk 0:00:18.6]} 41. Re5 {[%clk 0:00:28.5]} 41... Qd6
{[%clk 0:00:17.3]} 42. Qf3 {[%clk 0:00:28.7]} 42... Kg7 {[%clk 0:00:15.9]} 43.
Rxd5 {[%clk 0:00:29]} 43... Qc7 {[%clk 0:00:16]} 44. Rc5 {[%clk 0:00:29.1]}
44... Qd7 {[%clk 0:00:16.2]} 45. Qe3 {[%clk 0:00:27.1]} 45... Re8 {[%clk
0:00:15.9]} 46. Re5 {[%clk 0:00:27.6]} 46... Re6 {[%clk 0:00:13.6]} 47. d5
{[%clk 0:00:26.2]} 47... Rd6 {[%clk 0:00:11.7]} 48. c4 {[%clk 0:00:26.1]} 48...
Qa4 {[%clk 0:00:11.2]} 49. Qc3 {[%clk 0:00:24.1]} 49... Kh6 {[%clk 0:00:07.3]}
50. Re1 {[%clk 0:00:18.4]} 50... Qa2 {[%clk 0:00:06.5]} 51. Qh8+ {[%clk
0:00:18]} 51... Kg5 {[%clk 0:00:05.6]} 52. Qd4 {[%clk 0:00:17.7]} 52... Qc2
{[%clk 0:00:04.4]} 53. c5 {[%clk 0:00:16.9]} 53... Rd7 {[%clk 0:00:03.4]} 54. d6
{[%clk 0:00:17.1]} 54... Qb3 {[%clk 0:00:02.8]} 55. Re3 {[%clk 0:00:16.8]} 55...
Qb1+ {[%clk 0:00:02.1]} 56. Kh2 {[%clk 0:00:16.9]} 1-0

[Event "*** SCC Grand Prix: Titled Tuesday Blitz"]
[Site "Chess.com"]
[Date "2020.06.02"]
[Round "7"]
[White "anon569"]
[Black "PotapovaM"]
[Result "0-1"]
[WhiteElo "2280"]
[BlackElo "2455"]
[TimeControl "180+1"]
[EndTime "11:21:09 PDT"]
[Termination "PotapovaM won on time"]

1. e4 {[%clk 0:03:00.9]} 1... c5 {[%clk 0:02:57.9]} 2. Nf3 {[%clk 0:03:00.3]}
2... d6 {[%clk 0:02:58.4]} 3. d4 {[%clk 0:02:59.5]} 3... cxd4 {[%clk 0:02:59.3]}
4. Nxd4 {[%clk 0:03:00]} 4... Nf6 {[%clk 0:03:00]} 5. Nc3 {[%clk 0:03:00.2]}
5... a6 {[%clk 0:03:00.7]} 6. Bg5 {[%clk 0:03:00.3]} 6... e6 {[%clk 0:03:01.3]}
7. f4 {[%clk 0:03:00.3]} 7... h6 {[%clk 0:03:01.7]} 8. Bh4 {[%clk 0:02:59.2]}
8... Qb6 {[%clk 0:03:02.1]} 9. a3 {[%clk 0:02:58.7]} 9... Be7 {[%clk 0:03:01.4]}
10. Bf2 {[%clk 0:02:58.5]} 10... Qc7 {[%clk 0:03:02]} 11. Qf3 {[%clk 0:02:58.9]}
11... b5 {[%clk 0:03:00.4]} 12. O-O-O {[%clk 0:02:56.4]} 12... Bb7 {[%clk
0:03:00.5]} 13. g4 {[%clk 0:02:56.2]} 13... Nbd7 {[%clk 0:02:58]} 14. Bg2 {[%clk
0:02:47.7]} 14... g5 {[%clk 0:02:39]} 15. Qh3 {[%clk 0:02:43]} 15... O-O-O
{[%clk 0:02:31.4]} 16. f5 {[%clk 0:02:33]} 16... e5 {[%clk 0:02:24.3]} 17. Nb3
{[%clk 0:02:32]} 17... h5 {[%clk 0:02:14]} 18. gxh5 {[%clk 0:02:28.1]} 18...
Nxh5 {[%clk 0:02:10.9]} 19. Bf3 {[%clk 0:02:25.6]} 19... Nf4 {[%clk 0:02:02.8]}
20. Qf1 {[%clk 0:02:22.5]} 20... Nb6 {[%clk 0:01:58.1]} 21. Nd5 {[%clk
0:01:40.8]} 21... Bxd5 {[%clk 0:01:53.8]} 22. exd5 {[%clk 0:01:38.9]} 22... Nc4
{[%clk 0:01:53.9]} 23. Be4 {[%clk 0:01:28.4]} 23... Kb8 {[%clk 0:01:52]} 24. Qe1
{[%clk 0:01:18.3]} 24... Rh3 {[%clk 0:01:42.1]} 25. Kb1 {[%clk 0:01:15.1]} 25...
Rc8 {[%clk 0:01:37.8]} 26. Qb4 {[%clk 0:01:05.9]} 26... Ka8 {[%clk 0:01:12]} 27.
a4 {[%clk 0:00:58.1]} 27... Rb8 {[%clk 0:01:09.9]} 28. axb5 {[%clk 0:00:57.1]}
28... axb5 {[%clk 0:01:01.5]} 29. c3 {[%clk 0:00:47.6]} 29... Rhh8 {[%clk
0:00:57.9]} 30. Kc2 {[%clk 0:00:44.6]} 30... Rb7 {[%clk 0:00:53.6]} 31. Ra1+
{[%clk 0:00:41.9]} 31... Kb8 {[%clk 0:00:53.8]} 32. Ra2 {[%clk 0:00:34.1]} 32...
Kc8 {[%clk 0:00:39.1]} 33. Ra8+ {[%clk 0:00:20.3]} 33... Rb8 {[%clk 0:00:39.3]}
34. Ra7 {[%clk 0:00:16.5]} 34... Rb7 {[%clk 0:00:35]} 35. Rxb7 {[%clk
0:00:16.2]} 35... Qxb7 {[%clk 0:00:31.4]} 36. Na5 {[%clk 0:00:15.9]} 36... Nxa5
{[%clk 0:00:29.5]} 37. Qxa5 {[%clk 0:00:16.1]} 37... Kd7 {[%clk 0:00:29.2]} 38.
Bb6 {[%clk 0:00:12.9]} 38... Ke8 {[%clk 0:00:18.4]} 39. Qxb5+ {[%clk 0:00:12.4]}
39... Kf8 {[%clk 0:00:19]} 40. Qc6 {[%clk 0:00:09.6]} 40... Qa6 {[%clk
0:00:09.5]} 41. Bf3 {[%clk 0:00:05.8]} 41... Qd3+ {[%clk 0:00:08.3]} 42. Kb3
{[%clk 0:00:05.3]} 42... Qxf3 {[%clk 0:00:08.5]} 43. f6 {[%clk 0:00:01.7]} 43...
Bxf6 {[%clk 0:00:07]} 44. Qxd6+ {[%clk 0:00:02.1]} 44... Kg7 {[%clk 0:00:07.6]}
45. Bc5 {[%clk 0:00:01.3]} 45... Qxh1 {[%clk 0:00:06.3]} 0-1

[Event "*** SCC Grand Prix: Titled Tuesday Blitz"]
[Site "Chess.com"]
[Date "2020.06.02"]
[Round "7"]
[White "GMKrikor"]
[Black "TheNextLevelFan"]
[Result "0-1"]
[WhiteElo "2720"]
[BlackElo "2477"]
[TimeControl "180+1"]
[EndTime "11:21:10 PDT"]
[Termination "TheNextLevelFan won by resignation"]

1. e4 {[%clk 0:03:00.9]} 1... e5 {[%clk 0:02:59.7]} 2. Nf3 {[%clk 0:02:57.6]}
2... Nc6 {[%clk 0:02:59.8]} 3. d4 {[%clk 0:02:57.8]} 3... exd4 {[%clk
0:02:59.5]} 4. Nxd4 {[%clk 0:02:58.7]} 4... Bb4+ {[%clk 0:02:59.6]} 5. c3 {[%clk
0:02:54.8]} 5... Bc5 {[%clk 0:02:59.4]} 6. Be3 {[%clk 0:02:53]} 6... Bb6 {[%clk
0:02:59.7]} 7. Nd2 {[%clk 0:02:39.7]} 7... Nge7 {[%clk 0:02:54.7]} 8. Nc4 {[%clk
0:02:30.3]} 8... O-O {[%clk 0:02:53.9]} 9. Nxb6 {[%clk 0:02:30.1]} 9... axb6
{[%clk 0:02:54.5]} 10. Bd3 {[%clk 0:02:27.4]} 10... d6 {[%clk 0:02:54.2]} 11.
O-O {[%clk 0:02:26.4]} 11... Kh8 {[%clk 0:02:50.4]} 12. Qc2 {[%clk 0:01:58.4]}
12... Ne5 {[%clk 0:02:48.3]} 13. Be2 {[%clk 0:01:57.7]} 13... f5 {[%clk
0:02:40.3]} 14. exf5 {[%clk 0:01:52.9]} 14... Nxf5 {[%clk 0:02:39.2]} 15. Nxf5
{[%clk 0:01:52]} 15... Bxf5 {[%clk 0:02:38.8]} 16. Qd2 {[%clk 0:01:52]} 16...
Bg4 {[%clk 0:02:17.5]} 17. f3 {[%clk 0:01:49.9]} 17... Be6 {[%clk 0:02:14.1]}
18. b3 {[%clk 0:01:49.5]} 18... Qf6 {[%clk 0:02:07.5]} 19. Rad1 {[%clk 0:01:35]}
19... Rae8 {[%clk 0:02:01.7]} 20. Bd4 {[%clk 0:01:25.1]} 20... Qg6 {[%clk
0:02:01.3]} 21. Rf2 {[%clk 0:01:19]} 21... Bf5 {[%clk 0:01:49.3]} 22. c4 {[%clk
0:01:13]} 22... h6 {[%clk 0:01:41]} 23. Bc3 {[%clk 0:01:12.2]} 23... Re7 {[%clk
0:01:32.6]} 24. Kh1 {[%clk 0:00:58.2]} 24... Rfe8 {[%clk 0:01:32.4]} 25. Bf1
{[%clk 0:00:48.9]} 25... Qf7 {[%clk 0:01:04.6]} 26. Re2 {[%clk 0:00:37.2]} 26...
Bd7 {[%clk 0:01:02.7]} 27. Rf2 {[%clk 0:00:17.9]} 27... Bc6 {[%clk 0:01:02.4]}
28. h3 {[%clk 0:00:13.7]} 28... Kg8 {[%clk 0:01:01.7]} 29. Kg1 {[%clk
0:00:13.3]} 29... Ng6 {[%clk 0:01:00.6]} 30. Re2 {[%clk 0:00:11.7]} 30... Nf4
{[%clk 0:00:58.9]} 31. Rxe7 {[%clk 0:00:11.1]} 31... Rxe7 {[%clk 0:00:59.8]} 32.
Re1 {[%clk 0:00:10.9]} 32... Rxe1 {[%clk 0:00:54.3]} 33. Qxe1 {[%clk 0:00:11.1]}
33... Qg6 {[%clk 0:00:52.7]} 34. Kh2 {[%clk 0:00:10.5]} 34... Qc2 {[%clk
0:00:46.2]} 35. Qd2 {[%clk 0:00:07.6]} 35... Qf5 {[%clk 0:00:42]} 36. Qe3 {[%clk
0:00:06.7]} 36... Kf7 {[%clk 0:00:35.2]} 37. Qd4 {[%clk 0:00:06]} 37... Ne6
{[%clk 0:00:34.4]} 38. Qe3 {[%clk 0:00:06]} 38... b5 {[%clk 0:00:26.7]} 39. Bd3
{[%clk 0:00:04.5]} 39... Qf4+ {[%clk 0:00:25.8]} 40. Qxf4+ {[%clk 0:00:03.1]}
40... Nxf4 {[%clk 0:00:26.7]} 41. cxb5 {[%clk 0:00:03.5]} 41... Nxd3 {[%clk
0:00:26.1]} 42. bxc6 {[%clk 0:00:04]} 42... bxc6 {[%clk 0:00:26.8]} 43. a3
{[%clk 0:00:03.6]} 43... Nc1 {[%clk 0:00:22.5]} 44. b4 {[%clk 0:00:03.5]} 44...
Nb3 {[%clk 0:00:20.6]} 45. Kg1 {[%clk 0:00:03.2]} 45... c5 {[%clk 0:00:20.8]}
46. Kf2 {[%clk 0:00:03]} 46... g6 {[%clk 0:00:20.2]} 47. Ke2 {[%clk 0:00:02.9]}
47... c4 {[%clk 0:00:18.7]} 48. Kd1 {[%clk 0:00:02.2]} 48... d5 {[%clk 0:00:18]}
49. Be1 {[%clk 0:00:02.6]} 49... d4 {[%clk 0:00:17.1]} 50. Kc2 {[%clk 0:00:03]}
50... Ke6 {[%clk 0:00:15.7]} 51. a4 {[%clk 0:00:03.6]} 51... Kd5 {[%clk
0:00:13.7]} 52. Bf2 {[%clk 0:00:03.7]} 52... h5 {[%clk 0:00:12.5]} 53. g4 {[%clk
0:00:03.5]} 53... c5 {[%clk 0:00:12]} 54. f4 {[%clk 0:00:03.8]} 54... cxb4
{[%clk 0:00:11]} 55. f5 {[%clk 0:00:03.1]} 55... d3+ {[%clk 0:00:10.9]} 0-1

[Event "*** SCC Grand Prix: Titled Tuesday Blitz"]
[Site "Chess.com"]
[Date "2020.06.02"]
[Round "7"]
[White "Mikedannnn"]
[Black "Tomytoteph"]
[Result "1-0"]
[WhiteElo "2456"]
[BlackElo "2300"]
[TimeControl "180+1"]
[EndTime "11:21:10 PDT"]
[Termination "Mikedannnn won by resignation"]

1. e4 {[%clk 0:02:58.6]} 1... c5 {[%clk 0:02:58.3]} 2. Nf3 {[%clk 0:02:58.5]}
2... g6 {[%clk 0:02:59.2]} 3. Nc3 {[%clk 0:02:50.5]} 3... Bg7 {[%clk 0:02:55.9]}
4. g3 {[%clk 0:02:39.2]} 4... h5 {[%clk 0:02:53.9]} 5. Bg2 {[%clk 0:02:38.9]}
5... Nc6 {[%clk 0:02:53.9]} 6. O-O {[%clk 0:02:38.4]} 6... Nd4 {[%clk
0:02:52.1]} 7. d3 {[%clk 0:02:37.2]} 7... Nxf3+ {[%clk 0:02:50]} 8. Bxf3 {[%clk
0:02:34.6]} 8... h4 {[%clk 0:02:50.9]} 9. Be3 {[%clk 0:02:12.8]} 9... d6 {[%clk
0:02:48.1]} 10. d4 {[%clk 0:02:13.2]} 10... hxg3 {[%clk 0:02:43.7]} 11. hxg3
{[%clk 0:02:11.7]} 11... cxd4 {[%clk 0:02:36.5]} 12. Bxd4 {[%clk 0:02:11.6]}
12... Nf6 {[%clk 0:02:36.9]} 13. e5 {[%clk 0:02:11.1]} 13... dxe5 {[%clk
0:02:33.1]} 14. Bxe5 {[%clk 0:02:10.9]} 14... Qa5 {[%clk 0:02:33.6]} 15. Qd4
{[%clk 0:02:05]} 15... Be6 {[%clk 0:02:27.7]} 16. Bxb7 {[%clk 0:01:53.8]} 16...
Rd8 {[%clk 0:02:24.1]} 17. Qa4+ {[%clk 0:01:51.8]} 17... Qxa4 {[%clk 0:02:24.1]}
18. Nxa4 {[%clk 0:01:51.2]} 18... Rd2 {[%clk 0:02:24.3]} 19. Bc6+ {[%clk
0:01:47.1]} 19... Bd7 {[%clk 0:02:22.4]} 20. Bxd7+ {[%clk 0:01:46]} 20... Kxd7
{[%clk 0:02:22]} 21. Rad1 {[%clk 0:01:45.4]} 21... Rxd1 {[%clk 0:02:20.8]} 22.
Rxd1+ {[%clk 0:01:46.3]} 22... Ke6 {[%clk 0:02:21.7]} 23. Re1 {[%clk 0:01:39.4]}
23... Kf5 {[%clk 0:02:17.9]} 24. f3 {[%clk 0:01:31.7]} 24... Rc8 {[%clk
0:02:14.2]} 25. Re2 {[%clk 0:01:31.1]} 25... e6 {[%clk 0:01:38.2]} 26. Kg2
{[%clk 0:01:24.7]} 26... g5 {[%clk 0:01:32]} 27. g4+ {[%clk 0:01:17]} 27... Kg6
{[%clk 0:01:29.7]} 28. b3 {[%clk 0:01:17.3]} 28... Bf8 {[%clk 0:01:17]} 29. c4
{[%clk 0:01:15.8]} 29... a6 {[%clk 0:00:56.3]} 30. Nc3 {[%clk 0:01:15.3]} 30...
Nd7 {[%clk 0:00:55.7]} 31. Bd4 {[%clk 0:01:13.7]} 31... Bb4 {[%clk 0:00:54.3]}
32. Ne4 {[%clk 0:01:13.4]} 32... e5 {[%clk 0:00:51.9]} 33. Bb2 {[%clk
0:01:12.9]} 33... f6 {[%clk 0:00:50.2]} 34. a3 {[%clk 0:01:10.1]} 34... Be7
{[%clk 0:00:50.4]} 35. Rd2 {[%clk 0:01:06.6]} 35... Nf8 {[%clk 0:00:49.1]} 36.
Ng3 {[%clk 0:00:46.3]} 36... a5 {[%clk 0:00:38.3]} 37. Nf5 {[%clk 0:00:44.2]}
37... Bc5 {[%clk 0:00:38.6]} 38. Rd3 {[%clk 0:00:40.4]} 38... Ne6 {[%clk
0:00:38.2]} 39. Bc1 {[%clk 0:00:40.7]} 39... Bxa3 {[%clk 0:00:35]} 40. Bxa3
{[%clk 0:00:39.2]} 40... Nf4+ {[%clk 0:00:34.4]} 41. Kg3 {[%clk 0:00:39.6]}
41... Nxd3 {[%clk 0:00:35.3]} 42. Ne7+ {[%clk 0:00:39.9]} 42... Kf7 {[%clk
0:00:32.4]} 43. Nxc8 {[%clk 0:00:40.3]} 43... Ke6 {[%clk 0:00:32.7]} 44. Nd6
{[%clk 0:00:36.6]} 44... Nf4 {[%clk 0:00:27.8]} 45. Ne4 {[%clk 0:00:35.8]} 45...
Ne2+ {[%clk 0:00:28.7]} 46. Kf2 {[%clk 0:00:35.2]} 46... Nd4 {[%clk 0:00:29.6]}
47. Nc5+ {[%clk 0:00:33.6]} 47... Kf7 {[%clk 0:00:29.5]} 48. Bb2 {[%clk
0:00:33]} 48... Nc6 {[%clk 0:00:28.6]} 49. Ke3 {[%clk 0:00:32.9]} 49... Kg6
{[%clk 0:00:27.9]} 50. Ke4 {[%clk 0:00:32.5]} 50... Nb4 {[%clk 0:00:25.6]} 51.
Bc3 {[%clk 0:00:32.7]} 51... Nc6 {[%clk 0:00:25.1]} 52. Kd5 {[%clk 0:00:32.1]}
52... Nd8 {[%clk 0:00:25]} 53. Kd6 {[%clk 0:00:28.8]} 53... Nf7+ {[%clk
0:00:23.9]} 54. Ke7 {[%clk 0:00:29]} 54... Nh6 {[%clk 0:00:22.3]} 55. Ke6 {[%clk
0:00:27.5]} 55... Nf7 {[%clk 0:00:19.6]} 56. Bxa5 {[%clk 0:00:26.1]} 56... Nh6
{[%clk 0:00:16.2]} 57. Ne4 {[%clk 0:00:23.8]} 57... Nf7 {[%clk 0:00:13.6]} 58.
Nxf6 {[%clk 0:00:21.2]} 58... Nh6 {[%clk 0:00:11.9]} 59. Ne4 {[%clk 0:00:21.4]}
1-0